[Event "November 21 Early 2023"]
[Site "https://www.chess.com"]
[Date "2023.11.21"]
[Round "10"]
[White "Spata, German"]
[Black "Erzhanov, Arman"]
[Result "0-1"]
[Board "65"]
[TimeControl "180+1"]
[WhiteFideId "113026"]
[BlackFideId "4138821"]
[WhiteElo "2260"]
[BlackElo "2171"]
[WhiteTeam "ARG"]
[BlackTeam "KAZ"]
[WhiteClock "0:00:33"]
[BlackClock "0:02:26"]

1. e4 {[%clk 0:02:56]}  d6 {[%clk 0:02:59]} 2. d4 {[%clk 0:02:52]}  Nf6 {[%clk 0:02:59]} 3. f3 {[%clk 0:02:53]}  d5 {[%clk 0:02:59]} 4. e5 {[%clk 0:02:50]}  Ng8 {[%clk 0:02:59]} 5. Ne2 {[%clk 0:02:49]}  c5 {[%clk 0:02:58]} 6. c3 {[%clk 0:02:49]}  Nc6 {[%clk 0:02:59]} 7. Be3 {[%clk 0:02:48]}  Nh6 {[%clk 0:02:57]} 8. Ng3 {[%clk 0:02:47]}  Nf5 {[%clk 0:02:56]} 9. Nxf5 {[%clk 0:02:41]}  Bxf5 {[%clk 0:02:57]} 10. Bd3 {[%clk 0:02:41]}  Bxd3 {[%clk 0:02:56]} 11. Qxd3 {[%clk 0:02:41]}  e6 {[%clk 0:02:54]} 12. O-O {[%clk 0:02:39]}  Qb6 {[%clk 0:02:54]} 13. Nd2 {[%clk 0:02:28]}  Rc8 {[%clk 0:02:50]} 14. f4 {[%clk 0:02:13]}  g6 {[%clk 0:02:50]} 15. dxc5 {[%clk 0:01:59]}  Bxc5 {[%clk 0:02:49]} 16. Bxc5 {[%clk 0:01:59]}  Qxc5+ {[%clk 0:02:50]} 17. Kh1 {[%clk 0:02:00]}  h5 {[%clk 0:02:49]} 18. Rad1 {[%clk 0:01:55]}  Qb6 {[%clk 0:02:43]} 19. b3 {[%clk 0:01:19]}  O-O {[%clk 0:02:32]} 20. Nf3 {[%clk 0:01:09]}  Rfd8 {[%clk 0:02:28]} 21. f5 {[%clk 0:01:09]}  exf5 {[%clk 0:02:27]} 22. Qe3 {[%clk 0:00:33]}  Qxe3 {[%clk 0:02:26]} 0-1

[Event "November 21 Early 2023"]
[Site "https://www.chess.com"]
[Date "2023.11.21"]
[Round "10"]
[White "Vlassov, Nikolai"]
[Black "Eugene, Floryan"]
[Result "1/2-1/2"]
[Board "66"]
[TimeControl "180+1"]
[WhiteFideId "4103360"]
[BlackFideId "20694784"]
[WhiteElo "2324"]
[BlackElo "2369"]
[WhiteTeam "FID"]
[BlackTeam "FRA"]
[WhiteClock "0:00:14"]
[BlackClock "0:00:16"]

1. e4 {[%clk 0:03:00]}  c5 {[%clk 0:02:56]} 2. c3 {[%clk 0:03:00]}  d5 {[%clk 0:02:55]} 3. exd5 {[%clk 0:03:00]}  Qxd5 {[%clk 0:02:55]} 4. d4 {[%clk 0:03:01]}  Nf6 {[%clk 0:02:54]} 5. Nf3 {[%clk 0:03:01]}  Bg4 {[%clk 0:02:53]} 6. dxc5 {[%clk 0:03:00]}  Qxd1+ {[%clk 0:02:46]} 7. Kxd1 {[%clk 0:03:00]}  e5 {[%clk 0:02:47]} 8. Be3 {[%clk 0:02:59]}  Nc6 {[%clk 0:02:42]} 9. Nd2 {[%clk 0:02:43]}  Nd5 {[%clk 0:02:40]} 10. b4 {[%clk 0:02:25]}  Nxc3+ {[%clk 0:02:39]} 11. Kc2 {[%clk 0:02:25]}  Nd5 {[%clk 0:02:36]} 12. a3 {[%clk 0:02:25]}  Bf5+ {[%clk 0:02:33]} 13. Kb3 {[%clk 0:02:24]}  O-O-O {[%clk 0:02:25]} 14. Bb5 {[%clk 0:02:22]}  Be6 {[%clk 0:02:12]} 15. Nc4 {[%clk 0:02:06]}  e4 {[%clk 0:01:49]} 16. Ng5 {[%clk 0:01:56]}  Nxe3 {[%clk 0:01:39]} 17. Nxe6 {[%clk 0:01:47]}  Rd3+ {[%clk 0:01:35]} 18. Ka4 {[%clk 0:01:47]}  Nd5 {[%clk 0:01:11]} 19. Bxc6 {[%clk 0:01:38]}  fxe6 {[%clk 0:01:04]} 20. Bxd5 {[%clk 0:01:31]}  exd5 {[%clk 0:01:04]} 21. Ne5 {[%clk 0:01:31]}  Rd2 {[%clk 0:00:56]} 22. Rad1 {[%clk 0:01:31]}  Rxf2 {[%clk 0:00:56]} 23. Rxd5 {[%clk 0:01:30]}  Be7 {[%clk 0:00:53]} 24. Re1 {[%clk 0:01:26]}  Rxg2 {[%clk 0:00:48]} 25. Rxe4 {[%clk 0:01:26]}  Bf6 {[%clk 0:00:48]} 26. Ng4 {[%clk 0:01:09]}  Rd8 {[%clk 0:00:46]} 27. Nxf6 {[%clk 0:01:07]}  gxf6 {[%clk 0:00:45]} 28. Rxd8+ {[%clk 0:01:02]}  Kxd8 {[%clk 0:00:45]} 29. Rh4 {[%clk 0:01:01]}  Rg7 {[%clk 0:00:44]} 30. Kb5 {[%clk 0:00:59]}  Kc7 {[%clk 0:00:42]} 31. a4 {[%clk 0:00:58]}  f5 {[%clk 0:00:42]} 32. Rf4 {[%clk 0:00:44]}  Rg5 {[%clk 0:00:38]} 33. h4 {[%clk 0:00:42]}  Rg4 {[%clk 0:00:34]} 34. Rxf5 {[%clk 0:00:41]}  Rxh4 {[%clk 0:00:35]} 35. Rf7+ {[%clk 0:00:42]}  Kc8 {[%clk 0:00:35]} 36. Ka5 {[%clk 0:00:35]}  Rh5 {[%clk 0:00:34]} 37. Rg7 {[%clk 0:00:29]}  Kb8 {[%clk 0:00:30]} 38. Kb5 {[%clk 0:00:25]}  Kc8 {[%clk 0:00:29]} 39. Kc4 {[%clk 0:00:25]}  Rh4+ {[%clk 0:00:29]} 40. Kc3 {[%clk 0:00:24]}  h5 {[%clk 0:00:26]} 41. c6 {[%clk 0:00:20]}  bxc6 {[%clk 0:00:20]} 42. Rxa7 {[%clk 0:00:19]}  Rh1 {[%clk 0:00:20]} 43. Rh7 {[%clk 0:00:19]}  h4 {[%clk 0:00:18]} 44. Kc4 {[%clk 0:00:17]}  Rc1+ {[%clk 0:00:18]} 45. Kb3 {[%clk 0:00:16]}  Rh1 {[%clk 0:00:17]} 46. a5 {[%clk 0:00:16]}  h3 {[%clk 0:00:18]} 47. a6 {[%clk 0:00:16]}  Kb8 {[%clk 0:00:16]} 48. Kb2 {[%clk 0:00:13]}  Rh2+ {[%clk 0:00:15]} 49. Kb3 {[%clk 0:00:13]}  Rh1 {[%clk 0:00:16]} 50. Kb2 {[%clk 0:00:13]}  Rh2+ {[%clk 0:00:16]} 51. Kb3 {[%clk 0:00:14]}  Rh1 {[%clk 0:00:16]} 1/2-1/2

[Event "November 21 Early 2023"]
[Site "https://www.chess.com"]
[Date "2023.11.21"]
[Round "10"]
[White "Panda Sambit"]
[Black "gueraumasague"]
[Result "1-0"]
[Board "67"]
[TimeControl "180+1"]
[WhiteFideId "25091794"]
[WhiteElo "2216"]
[BlackElo "2596"]
[WhiteTeam "IND"]
[WhiteClock "0:00:03"]
[BlackClock "0:00:00"]

1. d4 {[%clk 0:03:00]}  g6 {[%clk 0:03:00]} 2. e4 {[%clk 0:02:59]}  Nf6 {[%clk 0:03:01]} 3. e5 {[%clk 0:02:59]}  Nh5 {[%clk 0:03:01]} 4. Be2 {[%clk 0:02:59]}  d6 {[%clk 0:03:02]} 5. Bxh5 {[%clk 0:02:59]}  gxh5 {[%clk 0:03:02]} 6. Qxh5 {[%clk 0:02:59]}  dxe5 {[%clk 0:03:03]} 7. Qxe5 {[%clk 0:02:59]}  Rg8 {[%clk 0:03:03]} 8. Nf3 {[%clk 0:02:42]}  Nc6 {[%clk 0:02:52]} 9. Qe4 {[%clk 0:02:36]}  f5 {[%clk 0:02:11]} 10. Qh4 {[%clk 0:02:31]}  Rxg2 {[%clk 0:02:06]} 11. Qh5+ {[%clk 0:02:17]}  Rg6 {[%clk 0:02:04]} 12. Qxh7 {[%clk 0:02:18]}  Re6+ {[%clk 0:01:49]} 13. Be3 {[%clk 0:01:51]}  Bh6 {[%clk 0:00:55]} 14. Rg1 {[%clk 0:01:31]}  Qd5 {[%clk 0:00:46]} 15. Qg8+ {[%clk 0:01:13]}  Kd7 {[%clk 0:00:46]} 16. Ne5+ {[%clk 0:00:30]}  Nxe5 {[%clk 0:00:36]} 17. dxe5 {[%clk 0:00:30]}  Bxe3 {[%clk 0:00:22]} 18. fxe3 {[%clk 0:00:29]}  Qxe5 {[%clk 0:00:22]} 19. Qg5 {[%clk 0:00:13]}  Qxb2 {[%clk 0:00:21]} 20. Nd2 {[%clk 0:00:12]}  Qxa1+ {[%clk 0:00:20]} 21. Kf2 {[%clk 0:00:12]}  Qc3 {[%clk 0:00:20]} 22. Rd1 {[%clk 0:00:10]}  Kc6 {[%clk 0:00:20]} 23. Nf3 {[%clk 0:00:09]}  Qxc2+ {[%clk 0:00:17]} 24. Rd2 {[%clk 0:00:08]}  Qc3 {[%clk 0:00:15]} 25. Nd4+ {[%clk 0:00:08]}  Kb6 {[%clk 0:00:15]} 26. Rc2 {[%clk 0:00:08]}  Qd3 {[%clk 0:00:13]} 27. Rb2+ {[%clk 0:00:08]}  Ka6 {[%clk 0:00:13]} 28. Nxe6 {[%clk 0:00:05]}  Bxe6 {[%clk 0:00:12]} 29. Qxe7 {[%clk 0:00:05]}  Qc3 {[%clk 0:00:08]} 30. Qxe6+ {[%clk 0:00:05]}  c6 {[%clk 0:00:08]} 31. Qb3 {[%clk 0:00:03]}  Qxb3 {[%clk 0:00:05]} 32. Rxb3 {[%clk 0:00:04]}  Rh8 {[%clk 0:00:05]} 33. Kg3 {[%clk 0:00:04]}  c5 {[%clk 0:00:05]} 34. Rd3 {[%clk 0:00:03]}  c4 {[%clk 0:00:03]} 35. Rd5 {[%clk 0:00:02]}  Rc8 {[%clk 0:00:02]} 36. Rxf5 {[%clk 0:00:03]}  c3 {[%clk 0:00:03]} 37. Rf1 {[%clk 0:00:03]}  c2 {[%clk 0:00:03]} 38. Rc1 {[%clk 0:00:04]}  b5 {[%clk 0:00:02]} 39. h4 {[%clk 0:00:05]}  Kb6 {[%clk 0:00:02]} 40. h5 {[%clk 0:00:05]}  a5 {[%clk 0:00:03]} 41. h6 {[%clk 0:00:05]}  b4 {[%clk 0:00:03]} 42. h7 {[%clk 0:00:05]}  a4 {[%clk 0:00:04]} 43. Rxc2 {[%clk 0:00:06]}  Rh8 {[%clk 0:00:02]} 44. Rh2 {[%clk 0:00:07]}  b3 {[%clk 0:00:03]} 45. axb3 {[%clk 0:00:07]}  axb3 {[%clk 0:00:04]} 46. Kf4 {[%clk 0:00:07]}  Kc5 {[%clk 0:00:04]} 47. Kf5 {[%clk 0:00:06]}  Kc4 {[%clk 0:00:05]} 48. Kg6 {[%clk 0:00:06]}  Kc3 {[%clk 0:00:05]} 49. e4 {[%clk 0:00:06]}  b2 {[%clk 0:00:00]} 50. Rh3+ {[%clk 0:00:03]} 1-0

[Event "November 21 Early 2023"]
[Site "https://www.chess.com"]
[Date "2023.11.21"]
[Round "10"]
[White "Statham_l3"]
[Black "Burovic00"]
[Result "0-1"]
[Board "69"]
[TimeControl "180+1"]
[WhiteElo "2589"]
[BlackElo "2486"]
[WhiteClock "0:00:02"]
[BlackClock "0:00:13"]

1. e4 {[%clk 0:03:00]}  e6 {[%clk 0:02:59]} 2. d4 {[%clk 0:03:00]}  d5 {[%clk 0:03:00]} 3. Bd3 {[%clk 0:02:59]}  c5 {[%clk 0:02:59]} 4. exd5 {[%clk 0:02:57]}  exd5 {[%clk 0:03:00]} 5. c3 {[%clk 0:02:57]}  Nc6 {[%clk 0:02:58]} 6. Ne2 {[%clk 0:02:57]}  c4 {[%clk 0:02:54]} 7. Bc2 {[%clk 0:02:56]}  Nf6 {[%clk 0:02:54]} 8. O-O {[%clk 0:02:56]}  Be7 {[%clk 0:02:50]} 9. h3 {[%clk 0:02:54]}  O-O {[%clk 0:02:49]} 10. Bf4 {[%clk 0:02:50]}  b5 {[%clk 0:02:45]} 11. Nd2 {[%clk 0:02:42]}  b4 {[%clk 0:02:36]} 12. Nf3 {[%clk 0:02:31]}  Bb7 {[%clk 0:02:29]} 13. Ne5 {[%clk 0:02:26]}  Nxe5 {[%clk 0:02:16]} 14. dxe5 {[%clk 0:02:27]}  Ne4 {[%clk 0:02:16]} 15. f3 {[%clk 0:02:02]}  Ng5 {[%clk 0:02:01]} 16. Bxg5 {[%clk 0:01:55]}  Bxg5 {[%clk 0:02:01]} 17. f4 {[%clk 0:01:55]}  Be7 {[%clk 0:01:53]} 18. Nd4 {[%clk 0:01:51]}  Qa5 {[%clk 0:01:45]} 19. f5 {[%clk 0:01:42]}  f6 {[%clk 0:01:29]} 20. Rf3 {[%clk 0:01:19]}  fxe5 {[%clk 0:01:24]} 21. Ne6 {[%clk 0:01:13]}  Rf7 {[%clk 0:01:10]} 22. Rg3 {[%clk 0:00:58]}  Bf6 {[%clk 0:01:08]} 23. Qh5 {[%clk 0:00:55]}  bxc3 {[%clk 0:00:53]} 24. bxc3 {[%clk 0:00:54]}  Qb6+ {[%clk 0:00:52]} 25. Kh1 {[%clk 0:00:50]}  Qb2 {[%clk 0:00:51]} 26. Qd1 {[%clk 0:00:31]}  Bc6 {[%clk 0:00:51]} 27. Rb1 {[%clk 0:00:27]}  Qa3 {[%clk 0:00:51]} 28. Qh5 {[%clk 0:00:20]}  Qxa2 {[%clk 0:00:47]} 29. Rc1 {[%clk 0:00:08]}  Qb2 {[%clk 0:00:44]} 30. Qd1 {[%clk 0:00:08]}  Qa3 {[%clk 0:00:40]} 31. Ra1 {[%clk 0:00:07]}  Qd6 {[%clk 0:00:41]} 32. Rb1 {[%clk 0:00:06]}  d4 {[%clk 0:00:20]} 33. Qh5 {[%clk 0:00:06]}  d3 {[%clk 0:00:20]} 34. Bd1 {[%clk 0:00:06]}  e4 {[%clk 0:00:20]} 35. Rg5 {[%clk 0:00:03]}  e3 {[%clk 0:00:18]} 36. Bg4 {[%clk 0:00:03]}  e2 {[%clk 0:00:18]} 37. Rg6 {[%clk 0:00:03]}  Qe5 {[%clk 0:00:13]} 38. Re1 {[%clk 0:00:02]}  d2 {[%clk 0:00:12]} 39. Nf4 {[%clk 0:00:01]}  dxe1=Q+ {[%clk 0:00:12]} 40. Kh2 {[%clk 0:00:02]}  Qxf4+ {[%clk 0:00:12]} 41. g3 {[%clk 0:00:02]}  Qff2# {[%clk 0:00:13]} 0-1

[Event "November 21 Early 2023"]
[Site "https://www.chess.com"]
[Date "2023.11.21"]
[Round "10"]
[White "Pourkashiyan, Atousa"]
[Black "ChainedDowntohell"]
[Result "1-0"]
[Board "70"]
[TimeControl "180+1"]
[WhiteFideId "12502014"]
[WhiteElo "2221"]
[BlackElo "2585"]
[WhiteTeam "USA"]
[WhiteClock "0:01:06"]
[BlackClock "0:00:00"]

1. e4 {[%clk 0:03:00]}  c5 {[%clk 0:02:49]} 2. Nf3 {[%clk 0:02:58]}  g6 {[%clk 0:02:48]} 3. d4 {[%clk 0:02:58]}  cxd4 {[%clk 0:02:49]} 4. Qxd4 {[%clk 0:02:58]}  Nf6 {[%clk 0:02:48]} 5. e5 {[%clk 0:02:58]}  Nc6 {[%clk 0:02:49]} 6. Qh4 {[%clk 0:02:58]}  Nxe5 {[%clk 0:02:45]} 7. Nxe5 {[%clk 0:02:50]}  Qa5+ {[%clk 0:02:44]} 8. Nc3 {[%clk 0:02:49]}  Qxe5+ {[%clk 0:02:44]} 9. Be3 {[%clk 0:02:48]}  Bg7 {[%clk 0:02:40]} 10. O-O-O {[%clk 0:02:41]}  O-O {[%clk 0:02:37]} 11. Bc4 {[%clk 0:02:34]}  d5 {[%clk 0:02:30]} 12. Bd4 {[%clk 0:02:31]}  Qc7 {[%clk 0:02:03]} 13. Bxd5 {[%clk 0:02:20]}  Bf5 {[%clk 0:01:53]} 14. Bb3 {[%clk 0:02:16]}  b5 {[%clk 0:01:42]} 15. Nxb5 {[%clk 0:02:10]}  Qb7 {[%clk 0:01:27]} 16. Nc3 {[%clk 0:02:06]}  a5 {[%clk 0:01:21]} 17. f3 {[%clk 0:01:54]}  Qb4 {[%clk 0:00:41]} 18. Bxf6 {[%clk 0:01:39]}  Bxf6 {[%clk 0:00:38]} 19. Qxb4 {[%clk 0:01:39]}  axb4 {[%clk 0:00:38]} 20. Nd5 {[%clk 0:01:40]}  Rfc8 {[%clk 0:00:07]} 21. Nb6 {[%clk 0:01:40]}  Kg7 {[%clk 0:00:05]} 22. Rhe1 {[%clk 0:01:33]}  h5 {[%clk 0:00:04]} 23. Nxa8 {[%clk 0:01:32]}  Rxa8 {[%clk 0:00:04]} 24. Bc4 {[%clk 0:01:24]}  h4 {[%clk 0:00:03]} 25. Kb1 {[%clk 0:01:22]}  e6 {[%clk 0:00:02]} 26. g4 {[%clk 0:01:21]}  hxg3 {[%clk 0:00:02]} 27. hxg3 {[%clk 0:01:22]}  g5 {[%clk 0:00:02]} 28. g4 {[%clk 0:01:22]}  Bg6 {[%clk 0:00:02]} 29. Bd3 {[%clk 0:01:23]}  Bxd3 {[%clk 0:00:01]} 30. Rxd3 {[%clk 0:01:23]}  Rb8 {[%clk 0:00:01]} 31. Re4 {[%clk 0:01:22]}  Be7 {[%clk 0:00:01]} 32. Rb3 {[%clk 0:01:21]}  Rd8 {[%clk 0:00:01]} 33. Rd3 {[%clk 0:01:21]}  Rc8 {[%clk 0:00:01]} 34. Kc1 {[%clk 0:01:21]}  Bf8 {[%clk 0:00:02]} 35. b3 {[%clk 0:01:20]}  Rc5 {[%clk 0:00:02]} 36. Rc4 {[%clk 0:01:20]}  Rb5 {[%clk 0:00:01]} 37. Re4 {[%clk 0:01:19]}  Be7 {[%clk 0:00:01]} 38. Kb2 {[%clk 0:01:19]}  Kf6 {[%clk 0:00:01]} 39. c4 {[%clk 0:01:19]}  Rb7 {[%clk 0:00:01]} 40. Red4 {[%clk 0:01:16]}  Rc7 {[%clk 0:00:02]} 41. Rd7 {[%clk 0:01:16]}  Rc8 {[%clk 0:00:03]} 42. Rb7 {[%clk 0:01:15]}  Rh8 {[%clk 0:00:04]} 43. Rdd7 {[%clk 0:01:15]}  Rh2+ {[%clk 0:00:04]} 44. Kc1 {[%clk 0:01:15]}  Bc5 {[%clk 0:00:04]} 45. Rxf7+ {[%clk 0:01:15]}  Ke5 {[%clk 0:00:05]} 46. Rb5 {[%clk 0:01:14]}  Kd4 {[%clk 0:00:04]} 47. Rd7+ {[%clk 0:01:12]}  Kc3 {[%clk 0:00:03]} 48. Rxc5 {[%clk 0:01:13]}  Rxa2 {[%clk 0:00:03]} 49. Kd1 {[%clk 0:01:13]}  Rf2 {[%clk 0:00:02]} 50. Rc8 {[%clk 0:01:10]}  Kxb3 {[%clk 0:00:01]} 51. c5 {[%clk 0:01:08]}  Kc3 {[%clk 0:00:01]} 52. c6 {[%clk 0:01:07]}  b3 {[%clk 0:00:02]} 53. Rb8 {[%clk 0:01:05]}  b2 {[%clk 0:00:00]} 54. c7 {[%clk 0:01:06]} 1-0

[Event "November 21 Early 2023"]
[Site "https://www.chess.com"]
[Date "2023.11.21"]
[Round "10"]
[White "Streltsov, Alexey"]
[Black "LangesNasenhaar"]
[Result "1-0"]
[Board "71"]
[TimeControl "180+1"]
[WhiteFideId "24104434"]
[WhiteElo "2311"]
[BlackElo "2454"]
[WhiteTeam "ISR"]
[WhiteClock "0:00:14"]
[BlackClock "0:00:00"]

1. e4 {[%clk 0:03:00]}  Nc6 {[%clk 0:02:59]} 2. Nf3 {[%clk 0:02:59]}  d6 {[%clk 0:02:57]} 3. Bc4 {[%clk 0:02:59]}  Nf6 {[%clk 0:02:56]} 4. h3 {[%clk 0:02:58]}  h6 {[%clk 0:02:52]} 5. d4 {[%clk 0:02:57]}  Nxe4 {[%clk 0:02:45]} 6. d5 {[%clk 0:02:51]}  Ne5 {[%clk 0:02:41]} 7. Nxe5 {[%clk 0:02:38]}  dxe5 {[%clk 0:02:40]} 8. O-O {[%clk 0:02:38]}  Nd6 {[%clk 0:02:38]} 9. Bd3 {[%clk 0:02:36]}  g6 {[%clk 0:02:38]} 10. c4 {[%clk 0:02:36]}  Bg7 {[%clk 0:02:32]} 11. c5 {[%clk 0:02:29]}  Nf5 {[%clk 0:02:32]} 12. Bb5+ {[%clk 0:02:09]}  Bd7 {[%clk 0:02:27]} 13. Qa4 {[%clk 0:02:09]}  Nd4 {[%clk 0:02:19]} 14. Bxd7+ {[%clk 0:01:50]}  Qxd7 {[%clk 0:02:19]} 15. Qxd7+ {[%clk 0:01:50]}  Kxd7 {[%clk 0:02:20]} 16. Nc3 {[%clk 0:01:50]}  Rad8 {[%clk 0:02:09]} 17. f4 {[%clk 0:01:51]}  f5 {[%clk 0:01:54]} 18. fxe5 {[%clk 0:01:46]}  Bxe5 {[%clk 0:01:54]} 19. Bf4 {[%clk 0:01:42]}  Bf6 {[%clk 0:01:47]} 20. Rad1 {[%clk 0:01:28]}  a6 {[%clk 0:01:39]} 21. Rfe1 {[%clk 0:01:18]}  Nb5 {[%clk 0:01:23]} 22. Nxb5 {[%clk 0:01:01]}  axb5 {[%clk 0:01:23]} 23. Re6 {[%clk 0:01:02]}  Bxb2 {[%clk 0:01:11]} 24. Rxg6 {[%clk 0:00:48]}  b4 {[%clk 0:00:44]} 25. Bxh6 {[%clk 0:00:38]}  Kc8 {[%clk 0:00:19]} 26. Bg5 {[%clk 0:00:35]}  Rd7 {[%clk 0:00:16]} 27. Re6 {[%clk 0:00:30]}  Rh7 {[%clk 0:00:07]} 28. h4 {[%clk 0:00:20]}  Ba3 {[%clk 0:00:00]} 29. Be3 {[%clk 0:00:14]} 1-0

[Event "November 21 Early 2023"]
[Site "https://www.chess.com"]
[Date "2023.11.21"]
[Round "10"]
[White "Kim, Sergey"]
[Black "Kozelov, Roman"]
[Result "1-0"]
[Board "73"]
[TimeControl "180+1"]
[WhiteFideId "13700570"]
[BlackFideId "14133377"]
[WhiteElo "2576"]
[BlackElo "2149"]
[WhiteTeam "KAZ"]
[BlackTeam "UKR"]
[WhiteClock "0:00:20"]
[BlackClock "0:00:07"]

1. d4 {[%clk 0:03:00]}  d5 {[%clk 0:02:55]} 2. c4 {[%clk 0:03:01]}  e5 {[%clk 0:02:55]} 3. e3 {[%clk 0:03:00]}  exd4 {[%clk 0:02:52]} 4. exd4 {[%clk 0:03:00]}  Nf6 {[%clk 0:02:51]} 5. Nf3 {[%clk 0:03:00]}  Bb4+ {[%clk 0:02:50]} 6. Nc3 {[%clk 0:02:59]}  O-O {[%clk 0:02:49]} 7. c5 {[%clk 0:02:59]}  Re8+ {[%clk 0:02:48]} 8. Be2 {[%clk 0:03:00]}  Ne4 {[%clk 0:02:47]} 9. Bd2 {[%clk 0:02:55]}  Nxd2 {[%clk 0:02:45]} 10. Qxd2 {[%clk 0:02:56]}  Nc6 {[%clk 0:02:39]} 11. O-O {[%clk 0:02:52]}  Bg4 {[%clk 0:02:37]} 12. Rfe1 {[%clk 0:02:45]}  Qf6 {[%clk 0:02:28]} 13. Rad1 {[%clk 0:02:16]}  Rad8 {[%clk 0:02:25]} 14. a3 {[%clk 0:02:12]}  Bxc3 {[%clk 0:02:25]} 15. Qxc3 {[%clk 0:01:43]}  Re4 {[%clk 0:02:19]} 16. h3 {[%clk 0:01:33]}  Bxf3 {[%clk 0:02:14]} 17. Bxf3 {[%clk 0:01:33]}  Rxd4 {[%clk 0:02:13]} 18. Rxd4 {[%clk 0:01:25]}  Nxd4 {[%clk 0:02:07]} 19. Bxd5 {[%clk 0:01:22]}  c6 {[%clk 0:02:08]} 20. Ba2 {[%clk 0:01:15]}  Kf8 {[%clk 0:02:02]} 21. Qc4 {[%clk 0:01:08]}  Qf4 {[%clk 0:01:55]} 22. Re3 {[%clk 0:01:00]}  h5 {[%clk 0:01:03]} 23. g3 {[%clk 0:00:39]}  Qf6 {[%clk 0:00:56]} 24. h4 {[%clk 0:00:30]}  Ne6 {[%clk 0:00:51]} 25. Kg2 {[%clk 0:00:26]}  Rd4 {[%clk 0:00:44]} 26. Qe2 {[%clk 0:00:23]}  Nc7 {[%clk 0:00:07]} 27. Rf3 {[%clk 0:00:20]} 1-0

[Event "November 21 Early 2023"]
[Site "https://www.chess.com"]
[Date "2023.11.21"]
[Round "10"]
[White "Malyi, Viacheslav"]
[Black "Bobomurodova, Maftuna"]
[Result "1-0"]
[Board "76"]
[TimeControl "180+1"]
[WhiteFideId "14123983"]
[BlackFideId "14207400"]
[WhiteElo "2291"]
[BlackElo "1814"]
[WhiteTeam "UKR"]
[BlackTeam "UZB"]
[WhiteClock "0:00:06"]
[BlackClock "0:00:14"]

1. d4 {[%clk 0:02:39]}  Nf6 {[%clk 0:02:59]} 2. Bg5 {[%clk 0:02:32]}  d5 {[%clk 0:02:56]} 3. Bxf6 {[%clk 0:02:31]}  exf6 {[%clk 0:02:53]} 4. e3 {[%clk 0:02:32]}  b6 {[%clk 0:02:52]} 5. c4 {[%clk 0:02:31]}  Be6 {[%clk 0:02:48]} 6. cxd5 {[%clk 0:02:28]}  Bxd5 {[%clk 0:02:47]} 7. Nc3 {[%clk 0:02:29]}  Bb7 {[%clk 0:02:47]} 8. Nf3 {[%clk 0:02:29]}  Nd7 {[%clk 0:02:41]} 9. Bc4 {[%clk 0:02:28]}  Bb4 {[%clk 0:02:33]} 10. Bxf7+ {[%clk 0:02:22]}  Kf8 {[%clk 0:02:06]} 11. Bb3 {[%clk 0:02:12]}  Qe7 {[%clk 0:01:59]} 12. O-O {[%clk 0:02:11]}  g6 {[%clk 0:01:57]} 13. Nd5 {[%clk 0:02:10]}  Bxd5 {[%clk 0:01:55]} 14. Bxd5 {[%clk 0:02:11]}  Rd8 {[%clk 0:01:53]} 15. a3 {[%clk 0:02:08]}  Bd6 {[%clk 0:01:53]} 16. Qb3 {[%clk 0:02:08]}  Kg7 {[%clk 0:01:53]} 17. Rac1 {[%clk 0:02:08]}  Rhe8 {[%clk 0:01:51]} 18. Bc6 {[%clk 0:02:08]}  h5 {[%clk 0:01:46]} 19. Qa4 {[%clk 0:02:06]}  a5 {[%clk 0:01:43]} 20. Bxd7 {[%clk 0:02:03]}  Qxd7 {[%clk 0:01:41]} 21. Qxd7+ {[%clk 0:02:02]}  Rxd7 {[%clk 0:01:41]} 22. Rc6 {[%clk 0:02:02]}  Kf7 {[%clk 0:01:38]} 23. Rfc1 {[%clk 0:02:03]}  Re6 {[%clk 0:01:37]} 24. Kf1 {[%clk 0:02:02]}  g5 {[%clk 0:01:35]} 25. Ke2 {[%clk 0:02:00]}  g4 {[%clk 0:01:35]} 26. Ne1 {[%clk 0:01:50]}  h4 {[%clk 0:01:17]} 27. g3 {[%clk 0:01:47]}  hxg3 {[%clk 0:01:16]} 28. hxg3 {[%clk 0:01:48]}  Re8 {[%clk 0:01:12]} 29. Nd3 {[%clk 0:01:38]}  Rh8 {[%clk 0:01:11]} 30. Kf1 {[%clk 0:01:33]}  Rh1+ {[%clk 0:01:05]} 31. Kg2 {[%clk 0:01:33]}  Rxc1 {[%clk 0:00:59]} 32. Rxc1 {[%clk 0:01:34]}  Ke6 {[%clk 0:00:57]} 33. Nf4+ {[%clk 0:01:33]}  Kf5 {[%clk 0:00:56]} 34. a4 {[%clk 0:01:19]}  Ke4 {[%clk 0:00:51]} 35. Rc6 {[%clk 0:01:18]}  f5 {[%clk 0:00:44]} 36. Rc1 {[%clk 0:01:14]}  Bxf4 {[%clk 0:00:42]} 37. gxf4 {[%clk 0:01:14]}  Kd3 {[%clk 0:00:41]} 38. Rc3+ {[%clk 0:01:09]}  Ke4 {[%clk 0:00:38]} 39. Kg3 {[%clk 0:01:07]}  Rh7 {[%clk 0:00:37]} 40. Kg2 {[%clk 0:01:04]}  Rd7 {[%clk 0:00:36]} 41. b3 {[%clk 0:01:04]}  Rh7 {[%clk 0:00:35]} 42. Rc6 {[%clk 0:01:04]}  Rf7 {[%clk 0:00:32]} 43. Rc3 {[%clk 0:00:52]}  Rd7 {[%clk 0:00:31]} 44. Rc4 {[%clk 0:00:49]}  Rh7 {[%clk 0:00:29]} 45. Rc1 {[%clk 0:00:38]}  Kd3 {[%clk 0:00:22]} 46. Kg3 {[%clk 0:00:32]}  Rh3+ {[%clk 0:00:21]} 47. Kg2 {[%clk 0:00:32]}  Rh7 {[%clk 0:00:22]} 48. Rc6 {[%clk 0:00:31]}  Rf7 {[%clk 0:00:21]} 49. Kf1 {[%clk 0:00:28]}  g3 {[%clk 0:00:19]} 50. Kg2 {[%clk 0:00:23]}  gxf2 {[%clk 0:00:19]} 51. Kxf2 {[%clk 0:00:24]}  Rh7 {[%clk 0:00:19]} 52. d5 {[%clk 0:00:18]}  Rh2+ {[%clk 0:00:19]} 53. Kf3 {[%clk 0:00:15]}  Rh3+ {[%clk 0:00:19]} 54. Kf2 {[%clk 0:00:15]}  Rh2+ {[%clk 0:00:19]} 55. Kg3 {[%clk 0:00:14]}  Rh7 {[%clk 0:00:19]} 56. Rf6 {[%clk 0:00:08]}  Kxe3 {[%clk 0:00:18]} 57. Rxf5 {[%clk 0:00:07]}  Kd4 {[%clk 0:00:19]} 58. Rg5 {[%clk 0:00:05]}  Rd7 {[%clk 0:00:16]} 59. Kg4 {[%clk 0:00:05]}  Kc3 {[%clk 0:00:14]} 60. f5 {[%clk 0:00:04]}  Kxb3 {[%clk 0:00:14]} 61. f6 {[%clk 0:00:04]}  Kxa4 {[%clk 0:00:14]} 62. Rf5 {[%clk 0:00:02]}  Kb3 {[%clk 0:00:11]} 63. f7 {[%clk 0:00:03]}  Rd8 {[%clk 0:00:12]} 64. f8=Q {[%clk 0:00:03]}  Rxf8 {[%clk 0:00:12]} 65. Rxf8 {[%clk 0:00:03]}  a4 {[%clk 0:00:13]} 66. Rf7 {[%clk 0:00:04]}  a3 {[%clk 0:00:13]} 67. Rxc7 {[%clk 0:00:05]}  a2 {[%clk 0:00:12]} 68. Ra7 {[%clk 0:00:05]}  b5 {[%clk 0:00:12]} 69. d6 {[%clk 0:00:06]}  b4 {[%clk 0:00:13]} 70. d7 {[%clk 0:00:06]}  Kb2 {[%clk 0:00:14]} 71. d8=Q {[%clk 0:00:07]}  b3 {[%clk 0:00:14]} 72. Qd4+ {[%clk 0:00:07]}  Kc2 {[%clk 0:00:13]} 73. Qc4+ {[%clk 0:00:07]}  Kb2 {[%clk 0:00:13]} 74. Kf3 {[%clk 0:00:06]}  Kb1 {[%clk 0:00:13]} 75. Qxb3+ {[%clk 0:00:06]}  Ka1 {[%clk 0:00:14]} 76. Qxa2# {[%clk 0:00:06]} 1-0